fUST/lending_fUST_20250611
["ID","MTS","AMOUNT","RATE_DAILY","PERIOD"]
[365300704,1749587439830,-460.0,0.00021095,4]
[365300705,1749587439839,-1970.2,0.00021095,4]
[365300706,1749587439848,-460.0,0.00021095,4]
[365300707,1749587439858,-460.0,0.00021095,4]
[365300708,1749587439867,-460.0,0.00021095,4]
[365300709,1749587439877,-2119.18,0.00021095,4]
[365300710,1749587439886,-460.0,0.00021095,4]
[365300711,1749587439896,-460.0,0.00021095,4]
[365300712,1749587439905,-1731.78,0.00021095,4]
[365300713,1749587439914,-440.0,0.00021095,4]
[365300714,1749587439923,-460.0,0.00021095,4]
[365300715,1749587439932,-460.0,0.00021095,4]
[365300716,1749587439943,-440.0,0.00021095,4]
[365300717,1749587439952,-460.0,0.00021095,4]
[365300718,1749587439961,-460.0,0.00021095,4]
[365300719,1749587439973,-588.03,0.00021095,4]
[365300720,1749587439983,-460.0,0.00021095,4]
[365300721,1749587439992,-440.0,0.00021095,4]
[365300722,1749587440002,-460.0,0.00021095,4]
[365300723,1749587440013,-460.0,0.00021095,4]
[365300724,1749587440023,-460.0,0.00021095,4]
[365300725,1749587440032,-460.0,0.00021095,4]
[365300726,1749587440043,-460.0,0.00021095,4]
[365300727,1749587440061,-1317.93,0.00021095,4]
[365300728,1749587440073,-460.0,0.00021095,4]
[365300729,1749587440083,-497.01,0.00021095,4]
[365300730,1749587440093,-460.0,0.00021095,4]
[365300731,1749587440103,-1194.35,0.00021095,4]
[365300732,1749587440113,-460.0,0.00021095,4]
[365300733,1749587440123,-460.0,0.00021095,4]
[365300734,1749587440133,-460.0,0.00021095,4]
[365300735,1749587440143,-430.0,0.00021095,4]
[365300737,1749587440153,-181.85358678,0.00021095,4]
[365300739,1749587440163,-430.0,0.00021095,4]
[365300741,1749587440173,-509.34,0.00021095,4]
[365300743,1749587440183,-460.0,0.00021095,4]
[365300745,1749587440193,-571.05,0.00021095,4]
[365300747,1749587440203,-440.0,0.00021095,4]
[365300749,1749587440213,-460.0,0.00021095,4]
[365300750,1749587440223,-460.0,0.00021095,4]
[365300751,1749587440233,-460.0,0.00021095,4]
[365300752,1749587440242,-580.41,0.00021095,4]
[365300753,1749587440252,-566.60561565,0.00021095,4]
[365300754,1749587440262,-430.0,0.00021095,4]
[365300755,1749587440272,-460.0,0.00021095,4]
[365300756,1749587440282,-460.0,0.00021095,4]
[365300757,1749587440293,-500.0,0.00021368,4]
[365300758,1749587440303,-500.0,0.00021368,4]
[365300759,1749587440312,-500.0,0.00021368,4]
[365300760,1749587440322,-500.0,0.00021368,4]
[365300761,1749587440332,-500.0,0.00021368,4]
[365300762,1749587440342,-420.0,0.00021369,4]
[365300763,1749587440352,-360.0,0.00021369,4]
[365300764,1749587440362,-460.0,0.00021369,4]
[365300765,1749587440372,-460.0,0.00021369,4]
[365300766,1749587440382,-460.0,0.00021369,4]
[365300768,1749587440391,-460.0,0.00021369,4]
[365300770,1749587440400,-460.0,0.00021369,4]
[365300772,1749587440410,-460.0,0.00021369,4]
[365300775,1749587440420,-461.73171211,0.00021369,4]
[365300777,1749587440430,-460.0,0.00021369,4]
[365300779,1749587440439,-460.0,0.00021369,4]
[365300781,1749587440449,-460.0,0.00021369,4]
[365300783,1749587440458,-460.0,0.00021369,4]
[365300785,1749587440469,-557.13,0.00021369,4]
[365300787,1749587440479,-460.0,0.00021369,4]
[365300789,1749587440489,-460.0,0.00021369,4]
[365300791,1749587440498,-460.0,0.00021369,4]
[365300793,1749587440508,-460.0,0.00021369,4]
[365300795,1749587440518,-460.0,0.00021369,4]
[365300797,1749587440527,-440.0,0.00021369,4]
[365300799,1749587440536,-460.0,0.00021369,4]
[365300801,1749587440546,-460.0,0.00021369,4]
[365300803,1749587440556,-554.14,0.00021369,4]
[365300805,1749587440566,-460.0,0.00021369,4]
[365300807,1749587440576,-460.0,0.00021369,4]
[365300809,1749587440586,-460.0,0.00021369,4]
[365300811,1749587440596,-460.0,0.00021369,4]
[365300813,1749587440605,-1691.86,0.00021369,4]
[365300815,1749587440616,-460.0,0.00021369,4]
[365300817,1749587440627,-420.0,0.00021369,4]
[365300819,1749587440637,-460.0,0.00021369,4]
[365300821,1749587440647,-460.0,0.00021369,4]
[365300823,1749587440658,-460.0,0.00021369,4]
[365300826,1749587440668,-460.0,0.00021369,4]
[365300828,1749587440679,-460.0,0.00021369,4]
[365300830,1749587440689,-460.0,0.00021369,4]
[365300832,1749587440698,-460.0,0.00021369,4]
[365300834,1749587440708,-460.0,0.00021369,4]
[365300836,1749587440718,-460.0,0.00021369,4]
[365300838,1749587440727,-460.0,0.00021369,4]
[365300840,1749587440737,-460.0,0.00021369,4]
[365300842,1749587440747,-460.0,0.00021369,4]
[365300844,1749587440756,-460.0,0.00021369,4]
[365300846,1749587440765,-420.0,0.00021369,4]
[365300848,1749587440775,-460.0,0.00021369,4]
[365300850,1749587440785,-224.85338045,0.00021369,4]
[365300852,1749587440795,-460.0,0.00021369,4]
[365300854,1749587440805,-460.0,0.00021369,4]
[365300856,1749587440814,-420.0,0.00021369,4]
[365300858,1749587440824,-1801.06,0.00021369,4]
[365300860,1749587440833,-460.0,0.00021369,4]
[365300862,1749587440843,-460.0,0.00021369,4]
[365300864,1749587440852,-410.0,0.00021369,4]
[365300866,1749587440861,-460.0,0.00021369,4]
[365300868,1749587440871,-495.01,0.00021369,4]
[365300870,1749587440880,-460.0,0.00021369,4]
[365300872,1749587440890,-460.0,0.00021369,4]
[365300874,1749587440900,-460.0,0.00021369,4]
[365300876,1749587440909,-460.0,0.00021369,4]
[365300878,1749587440918,-460.0,0.00021369,4]
[365300880,1749587440927,-460.0,0.00021369,2]
[365300882,1749587440936,-460.0,0.00021369,4]
[365300884,1749587440945,-460.0,0.00021369,4]
[365300886,1749587440954,-420.0,0.00021369,4]
[365300888,1749587440963,-460.0,0.00021369,4]
[365300889,1749587440977,-460.0,0.00021369,4]
[365300892,1749587440987,-223.44,0.00021369,4]
[365300894,1749587440996,-460.0,0.00021369,4]
[365300896,1749587441006,-460.0,0.00021369,4]
[365300898,1749587441017,-460.0,0.00021369,4]
[365300900,1749587441026,-420.0,0.00021369,4]
[365300902,1749587441036,-460.0,0.00021369,4]
[365300904,1749587441046,-1410.01,0.00021369,4]
[365300906,1749587441055,-1826.57,0.00021369,4]
[365300908,1749587441064,-460.0,0.00021369,4]
[365300910,1749587441073,-1970.2,0.00021369,4]
[365300912,1749587441083,-460.0,0.00021369,4]
[365300914,1749587441092,-460.0,0.00021369,4]
[365300916,1749587441101,-460.0,0.00021369,4]
[365300918,1749587441112,-2119.18,0.00021369,4]
[365300920,1749587441122,-460.0,0.00021369,4]
[365300922,1749587441131,-460.0,0.00021369,4]
[365300924,1749587441141,-1731.78,0.00021369,4]
[365300926,1749587441150,-460.0,0.00021369,4]
[365300928,1749587441161,-460.0,0.00021369,4]
[365300929,1749587441170,-460.0,0.00021369,4]
[365300931,1749587441180,-460.0,0.00021369,4]
[365300933,1749587441193,-588.03,0.00021369,4]
[365300957,1749587441414,-460.0,0.00021369,4]
[365300959,1749587441425,-460.0,0.00021369,4]
[365300961,1749587441435,-403.73455394,0.00021369,4]
[365300963,1749587441444,-460.0,0.00021369,4]
[365300965,1749587441455,-460.0,0.00021369,4]
[365300967,1749587441467,-460.0,0.00021369,4]
[365300969,1749587441481,-1317.93,0.00021369,4]
[365300971,1749587441490,-460.0,0.00021369,4]
[365300973,1749587441500,-497.01,0.00021369,4]
[365300975,1749587441509,-460.0,0.00021369,4]
[365300977,1749587441519,-1194.35,0.00021369,4]
[365300979,1749587441528,-460.0,0.00021369,4]
[365300981,1749587441537,-460.0,0.00021369,4]
[365300983,1749587441546,-410.0,0.00021369,4]
[365300985,1749587441555,-509.34,0.00021369,4]
[365300987,1749587441565,-373.89349763,0.00021369,4]
[365300989,1749587441574,-460.0,0.00021369,4]
[365300991,1749587441584,-257.04684791,0.00021369,4]
[365300993,1749587441593,-460.0,0.00021369,4]
[365300995,1749587441602,-580.41,0.00021369,4]
[365300997,1749587441612,-460.0,0.00021369,4]
[365300999,1749587441621,-194.92698106,0.00021543,2]
[365301001,1749587441630,-151.0,0.00021561,4]
[365301003,1749587441640,-500.0,0.00021642,2]
[365301005,1749587441649,-500.0,0.00021642,4]
[365301007,1749587441658,-500.0,0.00021642,4]
[365301009,1749587441667,-500.0,0.00021642,4]
[365301011,1749587441677,-500.0,0.00021642,2]
[365301013,1749587441685,-500.0,0.00021642,2]
[365301015,1749587441695,-500.0,0.00021642,2]
[365301017,1749587441709,-500.0,0.00021642,2]
[365301019,1749587441719,-500.0,0.00021642,2]
[365301021,1749587441729,-222.1535217,0.00021642,2]
[365301023,1749587441738,-500.0,0.00021642,2]
[365301025,1749587441747,-500.0,0.00021642,2]
[365301026,1749587441757,-500.0,0.00021642,2]
[365301027,1749587441766,-500.0,0.00021642,2]
[365301028,1749587441775,-500.0,0.00021642,2]
[365301029,1749587441784,-500.0,0.00021642,2]
[365301030,1749587441794,-460.0,0.00021643,4]
[365301031,1749587441804,-460.0,0.00021643,4]
[365301032,1749587441813,-460.0,0.00021643,4]
[365301033,1749587441822,-460.0,0.00021643,4]
[365301034,1749587441832,-460.0,0.00021643,4]
[365301035,1749587441844,-495.78953446,0.00021643,4]
[365301036,1749587441853,-460.0,0.00021643,4]
[365301037,1749587441863,-460.0,0.00021643,4]
[365301038,1749587441872,-153.07892128,0.00021643,4]
[365301039,1749587441882,-460.0,0.00021643,4]
[365301040,1749587441892,-557.13,0.00021643,4]
[365301041,1749587441901,-460.0,0.00021643,4]
[365301042,1749587441911,-460.0,0.00021643,4]
[365301043,1749587441921,-460.0,0.00021643,4]
[365301044,1749587441930,-460.0,0.00021643,4]
[365301045,1749587441940,-460.0,0.00021643,4]
[365301046,1749587441949,-460.0,0.00021643,4]
[365301047,1749587441959,-460.0,0.00021643,4]
[365301048,1749587441971,-554.14,0.00021643,4]
[365301049,1749587441981,-460.0,0.00021643,4]
[365301050,1749587441991,-460.0,0.00021643,4]
[365301051,1749587442001,-460.0,0.00021643,4]
[365301052,1749587442010,-460.0,0.00021643,4]
[365301053,1749587442020,-1691.86,0.00021643,4]
[365301054,1749587442030,-460.0,0.00021643,4]
[365301055,1749587442039,-460.0,0.00021643,4]
[365301056,1749587442052,-460.0,0.00021643,4]
[365301057,1749587442062,-240.0,0.00021643,4]
[365301058,1749587442072,-460.0,0.00021643,4]
[365301059,1749587442082,-460.0,0.00021643,4]
[365301060,1749587442091,-460.0,0.00021643,4]
[365301061,1749587442101,-460.0,0.00021643,4]
[365301062,1749587442110,-460.0,0.00021643,4]
[365301063,1749587442120,-460.0,0.00021643,4]
[365301064,1749587442137,-460.0,0.00021643,4]
[365301065,1749587442156,-400.0,0.00021643,4]
[365301066,1749587442168,-460.0,0.00021643,4]
[365301067,1749587442177,-460.0,0.00021643,4]
[365301068,1749587442187,-460.0,0.00021643,4]
[365301069,1749587442196,-460.0,0.00021643,4]
[365301070,1749587442206,-1801.06,0.00021643,4]
[365301071,1749587442216,-460.0,0.00021643,4]
[365301072,1749587442225,-220.0,0.00021643,4]
[365301073,1749587442235,-460.0,0.00021643,4]
[365301074,1749587442244,-495.01,0.00021643,4]
[365301075,1749587442253,-460.0,0.00021643,4]
[365301076,1749587442263,-460.0,0.00021643,4]
[365301077,1749587442272,-460.0,0.00021643,4]
[365301078,1749587442282,-460.0,0.00021643,4]
[365301079,1749587442291,-460.0,0.00021643,4]
[365301080,1749587442300,-460.0,0.00021643,2]
[365301081,1749587442310,-460.0,0.00021643,4]
[365301082,1749587442319,-460.0,0.00021643,4]
[365301083,1749587442329,-460.0,0.00021643,4]
[365301084,1749587442338,-355.7589457,0.00021643,4]
[365301085,1749587442349,-460.0,0.00021643,4]
[365301086,1749587442359,-460.0,0.00021643,4]
[365301087,1749587442368,-460.0,0.00021643,4]
[365301088,1749587442378,-460.0,0.00021643,4]
[365301089,1749587442388,-1410.01,0.00021643,4]
[365301090,1749587442397,-1826.57,0.00021643,4]
[365301091,1749587442406,-460.0,0.00021643,4]
[365301092,1749587442416,-1970.2,0.00021643,4]
[365301093,1749587442425,-514.49745214,0.00021643,4]
[365301094,1749587442434,-460.0,0.00021643,4]
[365301095,1749587442444,-460.0,0.00021643,4]
[365301096,1749587442453,-2119.18,0.00021643,4]
[365301097,1749587442462,-460.0,0.00021643,4]
[365301098,1749587442472,-460.0,0.00021643,4]
[365301099,1749587442482,-1731.78,0.00021643,4]
[365301100,1749587442492,-460.0,0.00021643,4]
[365301101,1749587442502,-460.0,0.00021643,4]
[365301102,1749587442511,-579.60293281,0.00021643,4]
[365301103,1749587442521,-460.0,0.00021643,4]
[365301104,1749587442531,-588.03,0.00021643,4]
[365301105,1749587442541,-400.0,0.00021643,4]
[365301106,1749587442550,-303.870631,0.00021643,4]
[365301107,1749587442560,-460.0,0.00021643,4]
[365301108,1749587442569,-460.0,0.00021643,4]
[365301109,1749587442579,-460.0,0.00021643,4]
[365301110,1749587442589,-1317.93,0.00021643,4]
[365301111,1749587442598,-460.0,0.00021643,4]
[365301112,1749587442607,-497.01,0.00021643,4]
[365301113,1749587442617,-460.0,0.00021643,4]
[365301114,1749587442627,-1194.35,0.00021643,4]
[365301115,1749587442636,-460.0,0.00021643,4]
[365301116,1749587442645,-460.0,0.00021643,4]
[365301117,1749587442655,-509.34,0.00021643,4]
[365301118,1749587442666,-347.64132327,0.00021643,4]
[365301119,1749587442785,-460.0,0.00021643,4]
[365301120,1749587442796,-580.41,0.00021643,4]
[365301121,1749587442806,-460.0,0.00021643,4]
[365301122,1749587442816,-500.0,0.00021684,2]
[365301123,1749587442825,-500.0,0.00021684,2]
[365301124,1749587442835,-150.46124919,0.00021755,2]
[365301125,1749587442844,-1031.52,0.00021844,2]
[365301126,1749587442853,-3008.51295003,0.000219,6]
[365301127,1749587442863,-15766.71817692,0.000219,2]
[365301128,1749587442872,-500.0,0.00021916,4]
[365301129,1749587442882,-500.0,0.00021916,4]
[365301130,1749587442891,-500.0,0.00021916,4]
[365301131,1749587442900,-562.38,0.00021917,4]
[365301132,1749587442910,-460.0,0.00021917,4]
[365301133,1749587442918,-460.0,0.00021917,4]
[365301134,1749587442927,-460.0,0.00021917,4]
[365301135,1749587442937,-460.0,0.00021917,4]
[365301136,1749587442947,-460.0,0.00021917,4]
[365301137,1749587442956,-460.0,0.00021917,4]
[365301138,1749587442966,-460.0,0.00021917,4]
[365301139,1749587442978,-557.13,0.00021917,4]
[365301140,1749587442987,-460.0,0.00021917,4]
[365301141,1749587442995,-460.0,0.00021917,4]
[365301142,1749587443005,-460.0,0.00021917,4]
[365301143,1749587443014,-460.0,0.00021917,4]
[365301144,1749587443023,-460.0,0.00021917,4]
[365301145,1749587443032,-460.0,0.00021917,4]
[365301146,1749587443041,-460.0,0.00021917,4]
[365301147,1749587443051,-554.14,0.00021917,4]
[365301148,1749587443060,-460.0,0.00021917,4]
[365301149,1749587443069,-460.0,0.00021917,4]
[365301150,1749587443079,-460.0,0.00021917,4]
[365301151,1749587443089,-460.0,0.00021917,4]
[365301152,1749587443098,-1691.86,0.00021917,4]
[365301153,1749587443109,-460.0,0.00021917,4]
[365301154,1749587443118,-460.0,0.00021917,4]
[365301155,1749587443128,-460.0,0.00021917,4]
[365301156,1749587443138,-460.0,0.00021917,4]
[365301157,1749587443147,-460.0,0.00021917,4]
[365301158,1749587443156,-460.0,0.00021917,4]
[365301159,1749587443165,-217.20016576,0.00021917,4]
[365301160,1749587443174,-460.0,0.00021917,4]
[365301161,1749587443184,-380.0,0.00021917,4]
[365301162,1749587443192,-460.0,0.00021917,4]
[365301163,1749587443201,-460.0,0.00021917,4]
[365301164,1749587443211,-600.0,0.00021917,4]
[365301165,1749587443220,-460.0,0.00021917,4]
[365301166,1749587443230,-460.0,0.00021917,4]
[365301167,1749587443240,-1801.06,0.00021917,4]
[365301168,1749587443250,-380.0,0.00021917,4]
[365301169,1749587443259,-460.0,0.00021917,4]
[365301170,1749587443268,-495.01,0.00021917,4]
[365301171,1749587443278,-460.0,0.00021917,4]
[365301172,1749587443287,-380.0,0.00021917,4]
[365301173,1749587443296,-460.0,0.00021917,4]
[365301174,1749587443305,-160.0,0.00021917,4]
[365301175,1749587443315,-460.0,0.00021917,4]
[365301176,1749587443324,-460.0,0.00021917,2]
[365301177,1749587443333,-460.0,0.00021917,4]
[365301178,1749587443342,-460.0,0.00021917,4]
[365301179,1749587443351,-460.0,0.00021917,4]
[365301180,1749587443360,-460.0,0.00021917,4]
[365301181,1749587443370,-460.0,0.00021917,4]
[365301182,1749587443379,-460.0,0.00021917,4]
[365301183,1749587443387,-460.0,0.00021917,4]
[365301184,1749587443397,-1410.01,0.00021917,4]
[365301185,1749587443406,-1826.57,0.00021917,4]
[365301186,1749587443415,-460.0,0.00021917,4]
[365301187,1749587443425,-1970.2,0.00021917,4]
[365301188,1749587443435,-460.0,0.00021917,4]
[365301189,1749587443444,-460.0,0.00021917,4]
[365301190,1749587443453,-2119.18,0.00021917,4]
[365301191,1749587443463,-460.0,0.00021917,4]
[365301192,1749587443472,-460.0,0.00021917,4]
[365301193,1749587443482,-1731.78,0.00021917,4]
[365301194,1749587443506,-460.0,0.00021917,4]
[365301195,1749587443519,-460.0,0.00021917,4]
[365301196,1749587443529,-460.0,0.00021917,4]
[365301197,1749587443540,-588.03,0.00021917,4]
[365301198,1749587443550,-460.0,0.00021917,4]
[365301199,1749587443560,-460.0,0.00021917,4]
[365301200,1749587443569,-460.0,0.00021917,4]
[365301201,1749587443579,-1317.93,0.00021917,4]
[365301202,1749587443589,-460.0,0.00021917,4]
[365301203,1749587443599,-497.01,0.00021917,4]
[365301204,1749587443609,-209.06383892,0.00021917,4]
[365301205,1749587443618,-1194.35,0.00021917,4]
[365301206,1749587443630,-460.0,0.00021917,4]
[365301208,1749587443639,-460.0,0.00021917,4]
[365301210,1749587443649,-509.34,0.00021917,4]
[365301211,1749587443659,-460.0,0.00021917,4]
[365301212,1749587443668,-580.41,0.00021917,4]
[365301213,1749587443677,-460.0,0.00021917,4]
[365301214,1749587443687,-234.61606172,0.00021918,3]
[365301215,1749587443697,-211.0,0.00021942,2]
[365301216,1749587443706,-420.0,0.00021942,2]
[365301217,1749587443716,-500.0,0.00021973,2]
[365301218,1749587443725,-500.0,0.00021973,2]
[365301219,1749587443735,-500.0,0.00021999,4]
[365301220,1749587443744,-500.0,0.00021999,4]
[365301221,1749587443753,-500.0,0.00021999,4]
[365301222,1749587443763,-500.0,0.00021999,4]
[365301223,1749587443772,-98755.72,0.00022,7]
[365301224,1749587443782,-213.1263252,0.00022,7]
[365301225,1749587443792,-842.5625,0.00022,7]
[365301226,1749587443801,-500.0,0.00022002,4]
[365301227,1749587443811,-3008.51294989,0.00022003,6]
[365301228,1749587443820,-500.0,0.00022005,2]
[365301229,1749587443829,-500.0,0.00022026,2]
[365301230,1749587443839,-500.0,0.00022097,4]
[365301231,1749587443848,-500.0,0.00022097,4]
[365301232,1749587443857,-186.7,0.00022097,4]
[365301233,1749587443867,-3008.51294989,0.00022107,6]
[365301234,1749587443878,-500.0,0.00022145,2]
[365301235,1749587443888,-460.0,0.00022191,4]
[365301236,1749587443897,-460.0,0.00022191,4]
[365301237,1749587443907,-460.0,0.00022191,4]
[365301238,1749587443920,-430.0,0.00022191,4]
[365301239,1749587443939,-460.0,0.00022191,4]
[365301240,1749587443951,-460.0,0.00022191,4]
[365301241,1749587443961,-460.0,0.00022191,4]
[365301242,1749587443974,-557.13,0.00022191,4]
[365301243,1749587443983,-460.0,0.00022191,4]
[365301244,1749587443993,-470.0,0.00022191,4]
[365301245,1749587444002,-460.0,0.00022191,4]
[365301246,1749587444012,-460.0,0.00022191,4]
[365301247,1749587444022,-460.0,0.00022191,4]
[365301248,1749587444031,-460.0,0.00022191,4]
[365301249,1749587444044,-460.0,0.00022191,4]
[365301250,1749587444054,-554.14,0.00022191,4]
[365301251,1749587444064,-460.0,0.00022191,4]
[365301252,1749587444074,-460.0,0.00022191,4]
[365301253,1749587444084,-360.0,0.00022191,4]
[365301254,1749587444094,-460.0,0.00022191,4]
[365301255,1749587444107,-1691.86,0.00022191,4]
[365301256,1749587444121,-460.0,0.00022191,4]
[365301257,1749587444131,-460.0,0.00022191,4]
[365301258,1749587444142,-460.0,0.00022191,4]
[365301259,1749587444151,-460.0,0.00022191,4]
[365301260,1749587444161,-460.0,0.00022191,4]
[365301261,1749587444171,-460.0,0.00022191,4]
[365301262,1749587444180,-460.0,0.00022191,4]
[365301263,1749587444190,-460.0,0.00022191,4]
[365301264,1749587444199,-460.0,0.00022191,4]
[365301265,1749587444209,-460.0,0.00022191,4]
[365301266,1749587444218,-460.0,0.00022191,4]
[365301267,1749587444228,-1801.06,0.00022191,4]
[365301268,1749587444238,-460.0,0.00022191,4]
[365301269,1749587444248,-495.01,0.00022191,4]
[365301270,1749587444257,-460.0,0.00022191,4]
[365301271,1749587444266,-460.0,0.00022191,4]
[365301272,1749587444276,-460.0,0.00022191,4]
[365301273,1749587444286,-460.0,0.00022191,2]
[365301274,1749587444295,-460.0,0.00022191,4]
[365301275,1749587444305,-360.0,0.00022191,4]
[365301276,1749587444314,-460.0,0.00022191,4]
[365301277,1749587444324,-460.0,0.00022191,4]
[365301278,1749587444333,-460.0,0.00022191,4]
[365301279,1749587444343,-360.0,0.00022191,4]
[365301280,1749587444352,-460.0,0.00022191,4]
[365301281,1749587444362,-1410.01,0.00022191,4]
[365301282,1749587444371,-1826.57,0.00022191,4]
[365301283,1749587444380,-460.0,0.00022191,4]
[365301284,1749587444390,-1970.2,0.00022191,4]
[365301285,1749587444399,-460.0,0.00022191,4]
[365301286,1749587444408,-460.0,0.00022191,4]
[365301287,1749587444418,-2119.18,0.00022191,4]
[365301288,1749587444427,-460.0,0.00022191,4]
[365301289,1749587444436,-460.0,0.00022191,4]
[365301290,1749587444446,-1731.78,0.00022191,4]
[365301291,1749587444456,-460.0,0.00022191,4]
[365301292,1749587444466,-460.0,0.00022191,4]
[365301293,1749587444476,-460.0,0.00022191,4]
[365301294,1749587444485,-588.03,0.00022191,4]
[365301295,1749587444495,-460.0,0.00022191,4]
[365301296,1749587444505,-460.0,0.00022191,4]
[365301297,1749587444514,-412.52361612,0.00022191,4]
[365301298,1749587444524,-1317.93,0.00022191,4]
[365301299,1749587444534,-460.0,0.00022191,4]
[365301300,1749587444543,-497.01,0.00022191,4]
[365301301,1749587444553,-1194.35,0.00022191,4]
[365301302,1749587444562,-460.0,0.00022191,4]
[365301303,1749587444572,-460.0,0.00022191,4]
[365301304,1749587444581,-509.34,0.00022191,4]
[365301305,1749587444591,-460.0,0.00022191,4]
[365301306,1749587444600,-580.41,0.00022191,4]
[365301307,1749587444610,-360.0,0.00022191,4]
[365301308,1749587444619,-544.17,0.000222,7]
[365301309,1749587444629,-151.0438227,0.000222,69]
[365301310,1749587444639,-3008.51294989,0.0002221,6]
[365301311,1749587444648,-3008.51294989,0.00022314,7]
[365301312,1749587444658,-3008.51294989,0.00022417,7]
[365301313,1749587444668,-151.04382269,0.00022426,70]
[365301314,1749587444677,-460.0,0.00022465,4]
[365301315,1749587444686,-530.0,0.00022465,4]
[365301316,1749587444696,-460.0,0.00022465,4]
[365301317,1749587444706,-460.0,0.00022465,4]
[365301318,1749587444715,-460.0,0.00022465,4]
[365301319,1749587444725,-532.11930906,0.00022465,4]
[365301320,1749587444734,-557.13,0.00022465,4]
[365301321,1749587444745,-460.0,0.00022465,4]
[365301322,1749587444755,-460.0,0.00022465,4]
[365301323,1749587444764,-460.0,0.00022465,4]
[365301324,1749587444774,-460.0,0.00022465,4]
[365301325,1749587444784,-460.0,0.00022465,4]
[365301326,1749587444793,-460.0,0.00022465,4]
[365301327,1749587444802,-554.14,0.00022465,4]
[365301328,1749587444812,-460.0,0.00022465,4]
[365301329,1749587444822,-460.0,0.00022465,4]
[365301330,1749587444831,-460.0,0.00022465,4]
[365301331,1749587444841,-1691.86,0.00022465,4]
[365301332,1749587444850,-460.0,0.00022465,4]
[365301333,1749587444860,-460.0,0.00022465,4]
[365301334,1749587444871,-460.0,0.00022465,4]
[365301335,1749587444881,-460.0,0.00022465,4]
[365301336,1749587444891,-460.0,0.00022465,4]
[365301337,1749587444900,-460.0,0.00022465,4]
[365301338,1749587444909,-460.0,0.00022465,4]
[365301339,1749587444919,-460.0,0.00022465,4]
[365301340,1749587444928,-460.0,0.00022465,4]
[365301341,1749587444937,-460.0,0.00022465,4]
[365301342,1749587444949,-460.0,0.00022465,4]
[365301343,1749587444959,-1801.06,0.00022465,4]
[365301344,1749587444971,-460.0,0.00022465,4]
[365301345,1749587444982,-495.01,0.00022465,4]
[365301346,1749587444991,-460.0,0.00022465,4]
[365301347,1749587445001,-460.0,0.00022465,4]
[365301348,1749587445012,-460.0,0.00022465,4]
[365301349,1749587445022,-460.0,0.00022465,2]
[365301350,1749587445031,-460.0,0.00022465,4]
[365301351,1749587445041,-460.0,0.00022465,4]
[365301352,1749587445051,-460.0,0.00022465,4]
[365301353,1749587445061,-460.0,0.00022465,4]